bitfinex/quotes_SOLUSD_20250207
["timestamp","ask_amount","ask_price","bid_price","bid_amount"]
[1738916187580,87.2757,193.21,193.15,20.0]
[1738916187988,82.1,193.21,193.15,20.0]
[1738916188190,87.2758,193.21,193.15,20.0]
[1738916188393,82.1,193.2,193.13,19.31484825]
[1738916188593,82.1,193.2,193.12,5.1778]
[1738916188594,102.38563046,193.2,193.12,5.1778]
[1738916188775,101.41484825,193.2,193.12,5.1778]
[1738916188977,82.1,193.19,193.12,5.1778]
[1738916190078,82.1,193.19,193.14,19.31484825]
[1738916190809,82.1,193.19,193.16,19.31484825]
[1738916190992,82.1,193.19,193.17,19.31484825]
[1738916191489,82.1,193.19,193.17,23.16939426]
[1738916191692,82.1,193.19,193.17,3.85454601]
[1738916192398,82.1,193.19,193.17,23.16939426]
[1738916192912,82.1,193.19,193.17,28.34609426]
[1738916193494,82.1,193.19,193.18,3.85454601]
[1738916193891,82.1,193.19,193.18,9.03104601]
[1738916194091,82.1,193.19,193.18,28.34589426]
[1738916194722,82.1,193.19,193.18,3.85454601]
[1738916195995,0.063,193.21,193.18,28.34589426]
[1738916196208,0.063,193.21,193.19,19.31484825]
[1738916198009,0.063,193.21,193.19,24.49104825]
[1738916199893,0.063,193.21,193.2,19.31484825]
[1738916201011,0.063,193.21,193.2,23.161603]
[1738916201910,0.063,193.21,193.19,19.31484825]
[1738916202090,0.063,193.21,193.18,24.49134825]
[1738916202290,82.1,193.2,193.15,0.03]
[1738916202514,82.1,193.19,193.15,0.03]
[1738916202710,82.1,193.19,193.16,20.0]
[1738916203809,82.1,193.19,193.15,0.03]
[1738916203991,19.31484825,193.17,193.15,0.03]
[1738916204193,19.31484825,193.16,193.15,0.03]
[1738916204610,32.72669678,193.16,193.15,0.03]
[1738916205726,19.31484825,193.17,193.15,0.03]
[1738916205930,26.08354825,193.19,193.15,0.03]
[1738916207217,19.31484825,193.18,193.15,0.03]
[1738916207590,26.08354825,193.19,193.15,0.03]
[1738916208420,1.5925,193.19,193.15,0.03]
[1738916209517,0.063,193.21,193.16,19.31484825]
[1738916210423,0.063,193.21,193.15,19.34484825]
[1738916210603,0.063,193.21,193.15,0.03]
[1738916210928,0.063,193.21,193.17,19.31484825]
[1738916211122,0.063,193.21,193.18,19.31484825]
[1738916211827,0.063,193.21,193.17,19.31484825]
[1738916212424,19.31484825,193.19,193.15,0.03]
[1738916212724,24.49114825,193.19,193.15,0.03]
[1738916213122,5.1763,193.19,193.15,0.03]
[1738916213423,82.1,193.18,193.15,0.03]
[1738916215020,106.59144825,193.18,193.15,0.03]
[1738916215318,32.72669678,193.16,193.15,0.03]
[1738916215705,33.69767898,193.16,193.15,0.03]
[1738916216205,19.31484825,193.16,193.15,0.03]
[1738916216403,19.31484825,193.17,193.15,0.03]
[1738916217119,24.49164825,193.17,193.15,0.03]
[1738916220028,32.72669678,193.18,193.15,0.03]
[1738916220327,37.90329678,193.18,193.15,0.03]
[1738916220528,19.31484825,193.17,193.15,0.03]
[1738916220724,33.69759708,193.16,193.15,0.03]
[1738916220930,35.46378708,193.16,193.15,0.03]
[1738916221134,35.46378708,193.16,193.12,3.86029177]
[1738916221135,35.58927708,193.16,193.12,3.86029177]
[1738916221335,32.85218678,193.13,193.12,3.86029177]
[1738916222022,37.90469678,193.13,193.1,0.03]
[1738916222336,32.72669678,193.11,193.1,0.03]
[1738916223337,37.90499678,193.11,193.1,0.03]
[1738916223932,24.49284825,193.13,193.1,0.03]
[1738916224546,13.41184853,193.12,193.1,0.03]
[1738916224716,32.72669678,193.11,193.1,0.03]
[1738916225221,38.03048678,193.11,193.1,0.03]
[1738916225741,39.00184049,193.11,193.1,0.03]
[1738916226737,38.03048678,193.11,193.1,0.03]
[1738916227740,39.00186286,193.11,193.1,0.03]
[1738916228534,38.87637286,193.11,193.1,0.03]
[1738916228835,32.72669678,193.11,193.1,0.03]
[1738916229140,19.31484825,193.12,193.1,0.03]
[1738916229324,19.31484825,193.11,193.1,0.03]
[1738916229733,19.31484825,193.12,193.1,0.03]
[1738916230141,19.31484825,193.14,193.1,0.03]
[1738916231641,19.31484825,193.13,193.1,0.03]
[1738916232740,32.72669678,193.14,193.1,0.03]
[1738916233536,20.95554825,193.16,193.1,0.03]
[1738916233850,82.1,193.13,193.12,19.31484825]
[1738916234142,0.063,193.19,193.12,19.44033825]
[1738916234350,0.063,193.19,193.14,19.31484825]
[1738916234520,0.063,193.19,193.15,19.31484825]
[1738916234843,0.063,193.19,193.16,19.31484825]
[1738916235023,0.063,193.19,193.13,5.1778]
[1738916235024,0.063,193.19,193.18,19.31484825]
[1738916235447,0.063,193.19,193.17,19.31484825]
[1738916236123,0.063,193.19,193.18,19.31484825]
[1738916236526,0.063,193.19,193.18,24.49134825]
[1738916238017,0.063,193.19,193.18,24.74232825]
[1738916238216,0.063,193.19,193.18,28.58044661]
[1738916238441,0.0001,193.19,193.18,28.58044661]
[1738916238655,0.0001,193.19,193.18,34.76204661]
[1738916239344,0.03,193.23,193.22,0.12549]
[1738916239548,0.03,193.23,193.22,20.99113825]
[1738916240343,0.03,193.23,193.22,26.16653825]
[1738916240540,0.03,193.23,193.22,26.29202825]
[1738916243240,0.03,193.23,193.22,26.16653825]
[1738916246119,0.03,193.23,193.22,26.41751825]
[1738916246327,0.0001,193.23,193.22,28.41751825]
[1738916246550,0.0001,193.23,193.22,28.54300825]
[1738916247330,0.0001,193.23,193.22,41.95485678]
[1738916247529,82.13,193.31,193.22,41.95485678]
[1738916247530,82.13,193.31,193.26,0.12549]
[1738916247737,82.13,193.31,193.29,19.31484825]
[1738916248350,82.13,193.31,193.29,24.48814825]
[1738916248850,82.02,193.31,193.29,5.1733]
[1738916249351,82.02,193.31,193.29,24.48814825]
[1738916251449,82.02,193.31,193.3,19.31484825]
[1738916251632,1.5588,193.35,193.3,19.31484825]
[1738916251633,82.02,193.34,193.3,19.31484825]
[1738916251833,82.02,193.34,193.29,24.48814825]
[1738916252561,19.31484825,193.32,193.27,5.1738]
[1738916253133,19.31484825,193.32,193.28,20.0]
[1738916253733,19.31484825,193.3,193.25,5.1745]
[1738916253933,82.02,193.29,193.25,5.1745]
[1738916254438,66.02,193.29,193.25,5.1745]
[1738916257750,66.02,193.29,193.26,19.31484825]
[1738916257949,66.02,193.29,193.27,19.31484825]
[1738916258351,66.02,193.29,193.28,19.31484825]
[1738916259257,66.02,193.34,193.28,19.34484825]
[1738916259463,0.063,193.31,193.3,19.31484825]
[1738916259763,0.063,193.31,193.3,44.73912825]
[1738916260754,0.063,193.31,193.3,44.86461825]
[1738916260956,0.03,193.37,193.36,19.31484825]
[1738916261366,0.03,193.38,193.37,0.12549]
[1738916261540,0.03,193.38,193.37,19.44033825]
[1738916261751,0.0001,193.38,193.37,19.56582825]
[1738916261944,0.0001,193.38,193.37,27.28851825]
[1738916262317,0.0001,193.38,193.37,26.16302825]
[1738916262573,0.0001,193.38,193.37,26.03753825]
[1738916262750,0.0001,193.38,193.37,19.31484825]
[1738916262946,0.0001,193.38,193.37,24.48624825]
[1738916263376,0.0001,193.38,193.37,19.31484825]
[1738916263555,0.0001,193.38,193.37,19.44033825]
[1738916264060,0.0001,193.38,193.37,19.56582825]
[1738916264561,0.0001,193.38,193.37,20.69131825]
[1738916265468,0.0001,193.38,193.37,21.69131825]
[1738916265764,0.0001,193.38,193.37,21.81680825]
[1738916266755,0.0001,193.38,193.37,19.56582825]
[1738916266962,0.0001,193.38,193.37,24.73722825]
[1738916268180,0.0001,193.38,193.37,26.01588722]
[1738916269186,0.0001,193.38,193.37,28.26686722]
[1738916269568,0.0001,193.38,193.37,27.26686722]
[1738916269975,0.0001,193.38,193.37,26.26686722]
[1738916270173,0.0001,193.38,193.37,26.01588722]
[1738916271275,0.0001,193.38,193.37,24.73722825]
[1738916271883,0.0001,193.38,193.37,24.76722825]
[1738916274489,0.0001,193.38,193.37,25.89271825]
[1738916274799,0.0001,193.38,193.37,24.89271825]
[1738916275811,0.0001,193.38,193.37,24.76722825]
[1738916276091,0.0001,193.38,193.37,0.03]
[1738916276593,0.0001,193.38,193.37,19.34484825]
[1738916277581,0.0001,193.38,193.37,0.03]
[1738916277794,0.0001,193.38,193.37,19.34484825]
[1738916277982,0.0001,193.38,193.37,19.59582825]
[1738916278379,0.0001,193.38,193.37,20.72131825]
[1738916278681,0.0001,193.41,193.4,21.37647]
[1738916278882,0.0001,193.41,193.4,59.0061665]
[1738916280091,0.0001,193.41,193.4,64.1767665]
[1738916280594,0.0001,193.41,193.4,44.86191825]
[1738916280795,0.0001,193.41,193.4,44.61093825]
[1738916281572,0.0001,193.41,193.4,44.73642825]
[1738916283481,0.0001,193.41,193.4,64.0512765]
[1738916284495,0.0001,193.41,193.4,44.73642825]
[1738916285878,0.0001,193.41,193.4,44.48544825]
[1738916286594,0.0001,193.41,193.38,19.31484825]
[1738916286898,0.0001,193.41,193.37,0.03]
[1738916286899,1.6396,193.41,193.37,0.03]
[1738916287300,1.6396,193.41,193.37,19.34484825]
[1738916288286,1.6396,193.41,193.37,0.03]
[1738916288497,66.02,193.4,193.37,0.03]
[1738916288696,85.33484825,193.4,193.37,0.03]
[1738916289078,66.02,193.4,193.37,0.03]
[1738916289279,85.33484825,193.4,193.37,0.03]
[1738916289688,66.02,193.4,193.37,19.34484825]
[1738916291496,66.02,193.4,193.37,0.03]
[1738916291698,66.02,193.39,193.37,0.03]
[1738916292004,19.31484825,193.38,193.37,0.03]
[1738916292387,13.53733853,193.38,193.37,0.03]
[1738916292590,33.82195095,193.38,193.37,0.03]
[1738916292794,38.99305095,193.38,193.37,0.03]
[1738916294080,38.86756095,193.38,193.37,0.03]
[1738916294283,19.31484825,193.4,193.37,0.03]
[1738916294485,2.93825272,193.41,193.37,0.03]
[1738916294698,1.6396,193.41,193.37,0.03]
[1738916295091,1.6396,193.41,193.37,19.34484825]
[1738916295500,1.6396,193.41,193.37,0.03]
[1738916297997,0.0001,193.41,193.37,0.03]
[1738916299086,33.69644504,193.41,193.37,0.03]
[1738916299397,19.31484825,193.4,193.37,0.03]
[1738916301308,38.86694504,193.41,193.37,0.03]
[1738916301812,19.31484825,193.38,193.37,0.03]
[1738916302009,20.28475336,193.38,193.37,0.03]
[1738916302512,33.69660189,193.38,193.37,0.03]
[1738916303093,20.82034825,193.39,193.37,0.03]
[1738916303293,1.5055,193.39,193.37,0.03]
[1738916304293,20.82034825,193.39,193.37,0.03]
[1738916304489,20.28460037,193.38,193.37,0.03]
[1738916305100,33.6964489,193.38,193.37,0.03]
[1738916305712,40.27804956,193.38,193.37,0.03]
[1738916306293,41.52902956,193.38,193.37,0.03]
[1738916306827,40.52902956,193.38,193.37,0.03]
[1738916307395,41.52902956,193.38,193.37,0.03]
[1738916307597,20.25098,193.34,193.28,0.03]
[1738916307794,32.72669678,193.29,193.28,0.03]
[1738916309136,38.02568678,193.29,193.28,0.03]
[1738916309300,38.15117678,193.29,193.28,0.03]
[1738916309622,39.27666678,193.29,193.28,0.03]
[1738916309808,13.66282853,193.28,193.17,0.03]
[1738916310115,19.31484825,193.25,193.17,24.52154825]
[1738916310316,19.31484825,193.26,193.19,19.31484825]
[1738916311111,19.31484825,193.26,193.19,24.49074825]
[1738916311419,101.41484825,193.27,193.19,24.49074825]
[1738916311617,19.31484825,193.25,193.18,19.31484825]
[1738916311802,19.31484825,193.25,193.17,24.52134825]
[1738916312807,19.31484825,193.23,193.17,5.2065]
[1738916313017,82.1,193.22,193.17,5.2065]
[1738916313212,82.1,193.21,193.17,0.03]
[1738916313604,82.1,193.2,193.17,0.03]
[1738916314107,101.41484825,193.2,193.17,0.03]
[1738916315119,82.1,193.2,193.17,0.03]
[1738916316307,82.1,193.2,193.17,19.34484825]
[1738916317629,82.1,193.2,193.18,19.31484825]
[1738916318520,82.1,193.2,193.17,5.2067]
[1738916318521,82.1,193.27,193.22,20.0]
[1738916318701,82.1,193.27,193.23,19.31484825]
[1738916319105,82.1,193.27,193.22,24.49004825]
[1738916319804,82.1,193.27,193.22,5.1752]
[1738916320828,82.1,193.27,193.22,24.49004825]
[1738916321025,82.1,193.27,193.25,19.31484825]
[1738916321227,0.063,193.28,193.25,19.31484825]
[1738916321525,0.063,193.28,193.26,19.31484825]
[1738916322118,0.063,193.28,193.27,19.31484825]
[1738916322919,0.063,193.28,193.27,24.48894825]
[1738916323614,0.063,193.28,193.27,24.61443825]
[1738916325127,0.063,193.28,193.27,24.73992825]
[1738916328126,0.063,193.28,193.27,24.61443825]
[1738916328328,0.063,193.28,193.27,5.1741]
[1738916329856,0.063,193.28,193.27,24.48894825]
[1738916332410,0.063,193.28,193.24,0.12549]
[1738916332411,0.063,193.28,193.24,5.1746]
[1738916332738,0.063,193.28,193.23,5.1751]
[1738916333047,0.063,193.28,193.23,24.48994825]
[1738916333220,0.063,193.28,193.24,19.31484825]
[1738916334218,0.063,193.28,193.21,0.12549]
[1738916334219,0.063,193.28,193.22,5.1754]
[1738916334444,19.31484825,193.25,193.19,5.206]
[1738916334642,19.31484825,193.24,193.19,0.03]
[1738916334834,82.1,193.23,193.19,0.03]
[1738916336025,101.41484825,193.23,193.19,0.03]
[1738916336237,82.1,193.23,193.19,0.03]
[1738916339044,82.1,193.23,193.21,19.31484825]
[1738916340246,82.1,193.23,193.21,24.49044825]
[1738916340542,82.1,193.23,193.21,5.1756]
[1738916340840,82.1,193.23,193.21,24.49044825]
[1738916341047,82.1,193.27,193.22,19.31484825]
[1738916341341,82.1,193.27,193.22,24.49014825]
[1738916341543,82.1,193.27,193.23,19.31484825]
[1738916341728,82.1,193.27,193.24,19.31484825]
[1738916341924,82.1,193.27,193.25,19.31484825]
[1738916343628,82.1,193.27,193.24,5.1746]
[1738916344229,82.1,193.27,193.25,19.31484825]
[1738916344641,82.1,193.27,193.26,19.31484825]
[1738916345144,0.063,193.28,193.26,19.31484825]
[1738916345344,0.063,193.28,193.27,24.48894825]
[1738916348450,0.063,193.28,193.27,24.61443825]
[1738916348946,0.063,193.28,193.27,24.73992825]
[1738916349828,0.063,193.28,193.27,24.48894825]
[1738916353171,0.063,193.28,193.24,19.31484825]
[1738916353469,0.063,193.28,193.23,5.1751]
[1738916353633,82.163,193.28,193.25,19.31484825]
[1738916353831,82.163,193.28,193.26,20.0]
[1738916354454,82.163,193.28,193.27,19.31484825]
[1738916354671,0.063,193.28,193.27,19.31484825]
[1738916355269,0.063,193.28,193.27,24.48894825]
[1738916356039,0.063,193.28,193.27,19.31484825]
[1738916356251,0.063,193.28,193.25,19.31484825]
[1738916356562,0.063,193.28,193.24,19.31484825]
[1738916356738,0.063,193.28,193.25,19.31484825]
[1738916357145,0.063,193.28,193.24,24.48944825]
[1738916357345,0.063,193.28,193.23,19.31484825]
[1738916357541,82.163,193.28,193.27,19.31484825]
[1738916357750,82.163,193.28,193.25,19.31484825]
[1738916358377,82.163,193.28,193.24,19.31484825]
[1738916361382,82.163,193.28,193.22,19.34484825]
[1738916361546,19.31484825,193.27,193.22,0.03]
[1738916361746,88.3070494,193.28,193.23,19.31484825]
[1738916361747,82.163,193.28,193.23,19.31484825]
[1738916361945,82.163,193.28,193.24,19.31484825]
[1738916362374,82.163,193.28,193.25,19.31484825]
[1738916363868,82.163,193.28,193.27,20.0]
[1738916364046,0.063,193.28,193.27,39.31484825]
[1738916364456,0.063,193.28,193.27,39.56582825]
[1738916365262,0.063,193.28,193.27,44.73992825]
[1738916365449,0.063,193.28,193.27,44.86541825]
[1738916365649,82.1,193.33,193.32,19.31484825]
[1738916365871,82.1,193.38,193.32,19.31484825]
[1738916366062,82.1,193.38,193.33,19.31484825]
[1738916366646,82.1,193.38,193.32,19.31484825]
[1738916366843,101.41484825,193.38,193.31,19.31484825]
[1738916367942,106.58594825,193.38,193.31,19.31484825]
[1738916368365,82.1,193.38,193.32,19.31484825]
[1738916369468,82.1,193.38,193.33,19.31484825]
[1738916369764,82.1,193.38,193.34,19.31484825]
[1738916370165,82.1,193.38,193.33,19.31484825]
[1738916370366,82.1,193.38,193.32,24.48754825]
[1738916370753,82.1,193.37,193.32,24.48754825]
[1738916370951,82.1,193.37,193.32,19.31484825]
[1738916371148,82.1,193.37,193.32,24.48744825]
[1738916373878,82.1,193.37,193.33,19.31484825]
[1738916374076,82.1,193.37,193.32,39.31484825]
[1738916375476,82.1,193.4,193.36,39.31484825]
[1738916375785,0.0001,193.41,193.39,19.31484825]
[1738916376275,82.1,193.4,193.35,19.31484825]
[1738916376461,82.1,193.4,193.34,19.31484825]
[1738916376786,82.1,193.4,193.35,19.31484825]
[1738916377659,82.1,193.4,193.35,24.48664825]
[1738916378380,82.1,193.4,193.33,19.31484825]
[1738916378381,101.41484825,193.4,193.33,19.31484825]
[1738916378579,19.31484825,193.39,193.32,24.48754825]
[1738916378766,82.1,193.38,193.32,24.48754825]
[1738916378965,82.1,193.38,193.33,19.31484825]
[1738916379667,82.1,193.38,193.33,24.48724825]
[1738916379982,82.1,193.38,193.34,19.31484825]
[1738916380363,82.1,193.38,193.35,19.31484825]
[1738916380783,82.1,193.38,193.34,19.31484825]
[1738916381086,82.1,193.38,193.33,24.48724825]
[1738916381587,82.1,193.38,193.32,39.31484825]
[1738916381765,82.1,193.38,193.33,19.31484825]
[1738916382786,82.1,193.37,193.33,19.31484825]
[1738916388193,82.1,193.37,193.34,19.31484825]
[1738916388400,82.1,193.37,193.35,19.31484825]
[1738916388699,82.1,193.37,193.33,17.50530311]
[1738916389288,82.163,193.37,193.33,17.50530311]
[1738916390104,82.163,193.37,193.32,20.0]
[1738916390292,87.3344,193.37,193.32,20.0]
[1738916390492,82.1,193.36,193.32,20.0]
[1738916391194,82.1,193.36,193.32,32.33290311]
[1738916391705,82.1,193.35,193.31,12.33290311]
[1738916391886,82.1,193.35,193.3,17.50590311]
[1738916392881,82.1,193.35,193.29,12.33290311]
[1738916393086,82.1,193.35,193.3,12.33290311]
[1738916393495,82.1,193.35,193.32,12.33290311]
[1738916393692,82.1,193.35,193.34,12.33290311]
[1738916393997,0.063,193.37,193.36,20.0]
[1738916394178,0.063,193.37,193.36,32.33290311]
[1738916394594,0.063,193.37,193.36,20.0]
[1738916396583,0.063,193.37,193.32,17.50540311]
[1738916396787,82.1,193.36,193.32,17.50540311]
[1738916396983,82.1,193.36,193.33,12.33290311]
[1738916397880,82.1,193.36,193.31,12.33290311]
[1738916398088,82.1,193.36,193.29,17.50640311]
[1738916398388,82.1,193.36,193.32,20.0]
[1738916398591,82.1,193.36,193.29,17.50640311]
[1738916399193,82.1,193.36,193.3,12.33290311]
[1738916400203,82.1,193.36,193.32,12.33290311]
[1738916401106,1.539,193.35,193.3,20.0]
[1738916401410,1.539,193.35,193.31,12.33290311]
[1738916402206,1.539,193.35,193.32,12.33290311]
[1738916402502,1.539,193.35,193.31,12.33290311]
[1738916403508,82.1,193.34,193.31,12.33290311]
[1738916404204,82.1,193.34,193.28,17.53650311]
[1738916404380,82.1,193.33,193.28,5.2036]
[1738916404784,82.1,193.33,193.28,17.53650311]
[1738916405389,82.1,193.33,193.29,12.33290311]
[1738916406893,82.1,193.33,193.28,17.53650311]
[1738916408891,82.1,193.33,193.28,0.03]
[1738916409410,82.1,193.32,193.28,0.03]
[1738916409920,82.1,193.32,193.28,37.53660311]
[1738916410216,82.1,193.32,193.3,12.33290311]
[1738916411291,82.1,193.32,193.28,25.2037]
[1738916411292,82.1,193.32,193.29,12.33290311]
[1738916412013,82.1,193.32,193.29,17.50620311]
[1738916412512,82.1,193.32,193.31,12.33290311]
[1738916413120,82.1,193.32,193.31,12.58388311]
[1738916413302,0.063,193.37,193.34,20.0]
[1738916413503,0.063,193.37,193.36,12.33290311]
[1738916414008,0.063,193.37,193.36,17.75558311]
[1738916414809,0.063,193.37,193.36,17.50460311]
[1738916415714,0.063,193.37,193.32,12.33290311]
[1738916415919,0.063,193.37,193.28,4.03]
[1738916415920,12.39590311,193.37,193.31,5.1729]
[1738916416215,13.30278175,193.36,193.29,17.50640311]
[1738916416594,12.33290311,193.36,193.29,17.50640311]
[1738916416800,13.36588188,193.37,193.29,17.50640311]
[1738916417000,12.33290311,193.36,193.29,17.50640311]
[1738916417916,12.33290311,193.34,193.28,5.2038]
[1738916418495,12.33290311,193.34,193.28,0.03]
[1738916418496,82.1,193.33,193.28,0.03]
[1738916418694,19.2863254,193.31,193.28,0.03]
[1738916418898,19.2863254,193.3,193.28,0.03]
[1738916419097,20.25652656,193.31,193.28,0.03]
[1738916419397,19.2863254,193.31,193.28,0.03]
[1738916419809,20.25647528,193.31,193.28,0.03]
[1738916421121,19.2863254,193.31,193.28,0.03]
[1738916421312,82.1,193.32,193.28,0.03]
[1738916422222,82.1,193.32,193.28,19.3163254]
[1738916423224,82.1,193.32,193.28,24.4899254]
[1738916423734,101.3863254,193.32,193.28,0.03]
[1738916424325,82.1,193.31,193.28,0.03]
[1738916424828,101.3863254,193.31,193.28,0.03]
[1738916426029,32.69817393,193.29,193.28,0.03]
[1738916426223,32.82366393,193.29,193.28,0.03]
[1738916426428,33.82366393,193.29,193.28,0.03]
[1738916426731,34.82366393,193.29,193.28,0.03]
[1738916427720,36.09672505,193.29,193.28,0.03]
[1738916427920,41.27022505,193.29,193.28,0.03]
[1738916428531,37.87167393,193.29,193.28,0.03]
[1738916428830,24.4598254,193.29,193.28,0.03]
[1738916429528,19.2863254,193.29,193.28,0.03]
[1738916430212,27.03227304,193.3,193.28,0.03]
[1738916430432,19.2863254,193.29,193.28,0.03]
[1738916430932,1.6021,193.3,193.28,0.03]
[1738916431729,21.85860909,193.3,193.28,0.03]
[1738916433120,1.6021,193.3,193.28,0.03]
[1738916433533,0.97019175,193.29,193.28,0.03]
[1738916433725,20.25651715,193.29,193.28,0.03]
[1738916435112,25.43001715,193.29,193.28,0.03]
[1738916436026,38.96735568,193.29,193.28,0.03]
[1738916438946,40.21833568,193.29,193.28,0.03]
[1738916439144,14.78831853,193.28,193.24,0.03]
[1738916439332,32.69817393,193.25,193.24,0.03]
[1738916439648,33.6689492,193.25,193.24,0.03]
[1738916440148,48.8712192,193.25,193.24,0.03]
[1738916440455,48.8712192,193.25,193.24,0.0001]
[1738916441350,14.78831853,193.23,193.22,0.03]
[1738916441650,34.04554445,193.23,193.22,0.03]
[1738916442148,40.22064445,193.23,193.22,0.03]
[1738916442349,39.22064445,193.23,193.22,0.03]
[1738916442532,38.96966445,193.23,193.22,0.03]
[1738916450460,38.84417445,193.23,193.22,0.03]
[1738916450663,31.91597205,193.23,193.22,0.03]
[1738916452272,0.97090052,193.23,193.22,0.03]
[1738916452575,12.358123,193.26,193.22,0.03]
[1738916453087,13.32863004,193.26,193.22,0.03]
[1738916453355,12.358123,193.25,193.22,0.03]
[1738916454035,13.32863004,193.26,193.22,0.03]
[1738916454752,13.32859882,193.29,193.22,0.03]
[1738916455060,13.32859882,193.29,193.25,12.358123]
[1738916455061,82.1,193.29,193.25,12.358123]
[1738916456058,82.1,193.29,193.25,17.532423]
[1738916458059,0.063,193.3,193.28,12.358123]
[1738916458237,0.063,193.3,193.29,12.358123]
[1738916458735,0.063,193.3,193.29,19.27632916]
[1738916458935,0.063,193.3,193.29,20.8481952]
[1738916459135,82.163,193.36,193.32,20.0]
[1738916459136,0.063,193.36,193.32,20.0]
[1738916459357,0.063,193.36,193.35,19.27632916]
[1738916459563,0.063,193.36,193.35,19.52730916]
[1738916459741,0.063,193.37,193.35,25.71490916]
[1738916459943,0.0001,193.37,193.36,19.65279916]
[1738916460263,0.0101,193.42,193.4,0.25098]
[1738916460442,0.0101,193.42,193.41,19.27632916]
[1738916460845,0.0101,193.42,193.41,19.52730916]
[1738916461074,0.0101,193.42,193.41,19.27632916]
[1738916462238,0.0101,193.42,193.41,24.44662916]
[1738916464260,0.0101,193.42,193.41,24.82309916]
[1738916464582,0.03,193.47,193.46,20.25098]
[1738916464864,0.03,193.47,193.46,39.52730916]
[1738916465466,0.03,193.47,193.46,39.27632916]
[1738916465960,0.03,193.47,193.46,20.0]
[1738916466161,0.03,193.47,193.44,6.2427]
[1738916466354,0.03,193.47,193.42,19.27632916]
[1738916466553,82.13,193.47,193.43,19.27632916]
[1738916466947,82.13,193.47,193.45,19.27632916]
[1738916467155,82.13,193.47,193.46,19.27632916]
[1738916467360,0.03,193.47,193.46,19.27632916]
[1738916468458,0.03,193.47,193.46,24.44532916]
[1738916469467,0.03,193.47,193.45,19.27632916]
[1738916469657,0.03,193.47,193.43,5.1698]
[1738916470569,0.03,193.47,193.42,19.27632916]
[1738916470758,82.1,193.46,193.4,19.27632916]
[1738916471149,82.1,193.46,193.43,20.0]
[1738916473567,101.37632916,193.46,193.39,24.44712916]
[1738916473756,19.27632916,193.44,193.37,19.27632916]
[1738916474487,20.2458575,193.43,193.36,24.44802916]
[1738916475021,19.27632916,193.42,193.36,5.1717]
[1738916475158,19.27632916,193.4,193.34,5.1719]
[1738916475365,101.37632916,193.4,193.34,5.1719]
[1738916475749,101.37632916,193.4,193.33,24.44862916]
[1738916475957,101.37632916,193.4,193.33,5.1723]
[1738916476364,0.96977145,193.39,193.35,20.0]
[1738916476563,0.96977145,193.39,193.32,24.44902916]
[1738916476564,101.37632916,193.38,193.32,5.1727]
[1738916477365,106.54742916,193.38,193.32,5.1727]
[1738916477564,105.54742916,193.38,193.32,5.1727]
[1738916477773,0.96986671,193.37,193.3,85.94942916]
[1738916477972,100.37632916,193.36,193.3,5.1731]
[1738916478583,81.1,193.36,193.3,5.1731]
[1738916479264,100.37632916,193.36,193.3,5.1731]
[1738916479582,100.37632916,193.36,193.27,1.5484]
[1738916479583,19.27632916,193.34,193.28,5.1735]
[1738916480405,19.27632916,193.34,193.27,19.27632916]
[1738916480601,19.27632916,193.3,193.25,5.1746]
[1738916480903,19.27632916,193.3,193.23,24.45132916]
[1738916481068,19.27632916,193.31,193.24,19.27632916]
[1738916481368,19.27632916,193.31,193.25,5.1746]